bitfinex-derivatives/quotes_ETHF0:USTF0_20220108
["timestamp","ask_amount","ask_price","bid_price","bid_amount"]
[1641682952283,0.15538,3113.6,3113.0,2.00479]
[1641682952485,2.00479,3113.4,3113.0,2.00479]
[1641682952885,0.15538,3113.3,3113.0,2.00479]
[1641682953288,0.640787,3113.2,3113.0,2.00479]
[1641682953486,0.15538,3113.1,3113.0,2.00479]
[1641682956989,0.15538,3113.1,3112.3,36.62510918]
[1641682957189,0.15538,3113.1,3112.3,1.60580918]
[1641682957487,1.95719478,3113.1,3112.3,1.60580918]
[1641682957687,1.5,3113.0,3112.3,1.60580918]
[1641682957888,1.5,3113.0,3111.8,1.60608771]
[1641682958087,0.15538,3112.9,3111.8,1.60608771]
[1641682958492,0.004,3111.8,3111.3,1.35605558]
[1641682958690,2.296167,3111.7,3111.3,1.35605558]
[1641682958890,0.796167,3111.7,3111.3,1.35605558]
[1641682959290,0.796167,3111.7,3110.9,1.35605558]
[1641682959690,0.004,3111.8,3111.0,0.66197]
[1641682959890,0.004,3111.8,3111.1,0.08033]
[1641682960290,0.004,3111.8,3111.2,0.66197]
[1641682960493,2.00479,3111.4,3111.2,0.66197]
[1641682961092,2.00479,3111.4,3110.7,2.00479]
[1641682961290,2.00479,3111.4,3111.1,0.66197]
[1641682961689,2.00479,3111.4,3111.1,0.65797]
[1641682961897,2.00479,3111.4,3110.7,2.00479]
[1641682962491,0.15938,3111.3,3110.7,2.00479]
[1641682962891,0.640787,3111.2,3110.7,2.00479]
[1641682963093,0.15938,3111.1,3110.7,2.66676]
[1641682963490,0.15938,3111.1,3110.7,2.00479]
[1641682964494,0.15938,3111.1,3110.9,1.60652893]
[1641682964692,2.00479,3111.4,3110.9,0.66197]
[1641682965792,2.16417,3111.4,3110.9,0.66197]
[1641682967497,2.16417,3111.4,3110.7,2.00479]
[1641682967795,2.16417,3111.4,3110.8,0.66197]
[1641682969896,2.00479,3111.4,3110.8,0.66197]
[1641682970099,2.00479,3111.4,3110.9,13.77]
[1641682970298,2.00479,3111.4,3111.0,0.66197]
[1641682976203,2.645577,3111.4,3111.0,0.66197]
[1641682976406,2.645577,3111.4,3110.7,0.8981]
[1641682976407,0.15938,3111.3,3110.7,0.8981]
[1641682976604,2.00479,3111.0,3110.7,0.8981]
[1641682977012,0.15938,3111.0,3110.7,0.8981]
[1641682977414,2.00479,3111.4,3110.7,0.8981]
[1641682977612,0.15938,3111.3,3110.7,0.8981]
[1641682978814,0.800167,3111.3,3110.7,0.8981]
[1641682981216,0.15938,3111.3,3110.7,1.56007]
[1641682981619,0.640787,3111.2,3110.7,1.56007]
[1641682981819,0.15938,3111.1,3110.7,0.8981]
[1641682982618,2.00479,3111.0,3110.7,0.8981]
[1641682982818,2.16417,3111.0,3110.7,0.8981]
[1641682985520,2.16417,3111.0,3110.4,4.00958]
[1641682986021,2.16417,3111.0,3110.9,1.60654442]
[1641682986022,2.00479,3111.0,3110.9,1.60654442]
[1641682986422,2.00479,3111.0,3110.4,4.00958]
[1641682986423,2.00479,3111.0,3110.5,1.60676125]
[1641682986623,2.00479,3111.0,3110.5,0.66197]
[1641682986824,2.00479,3111.0,3110.8,1.60659862]
[1641682987624,2.00479,3111.0,3110.4,5.61635158]
[1641682987923,0.15938,3110.9,3110.4,5.61635158]
[1641682988524,0.15938,3110.9,3110.4,3.61156158]
[1641682990026,1.5,3110.6,3109.9,1.60702721]
[1641682990225,2.91371946,3110.3,3109.9,1.60702721]
[1641682990523,2.91371946,3110.3,3109.2,5.414]
[1641682990724,2.00479,3110.1,3109.4,2.00479]
[1641682990926,0.15938,3110.0,3109.4,2.00479]
[1641682991125,0.15938,3110.0,3109.4,2.66676]
[1641682991323,0.15938,3110.0,3109.4,3.61201351]
[1641682992326,0.15938,3110.0,3109.4,1.60722351]
[1641682992626,0.15938,3110.0,3109.1,3.6120135]
[1641682992627,2.39670738,3109.9,3109.1,2.00479]
[1641682992924,2.00479,3109.5,3108.7,4.96843081]
[1641682993329,1.5,3108.8,3108.4,1.62729075]
[1641682993527,4.0,3109.2,3108.2,2.03555845]
[1641682993730,1.72858974,3108.4,3108.2,2.03555845]
[1641682993929,0.15938,3108.3,3108.2,2.03555845]
[1641682994328,1.65938,3108.3,3108.0,2.71987124]
[1641682994531,0.15938,3108.3,3107.5,3.74243731]
[1641682994729,2.00479,3107.6,3107.5,3.74243731]
[1641682994930,0.800167,3107.8,3107.5,3.74243731]
[1641682995134,1.72858974,3108.4,3107.5,3.74243731]
[1641682995331,1.5,3108.9,3107.5,5.36903822]
[1641682995532,1.28471148,3108.8,3107.6,0.08042]
[1641682995732,1.5,3108.9,3107.5,1.62660091]
[1641682995934,1.5,3109.1,3107.5,1.62660091]
[1641682996135,11.23106103,3109.5,3107.5,1.62660091]
[1641682996333,1.28467128,3108.9,3107.5,1.62660091]
[1641682996535,1.60871796,3108.0,3106.8,1.5]
[1641682996735,2.00479,3107.4,3106.8,1.5]
[1641682996935,2.00479,3107.7,3106.9,0.74243]
[1641682997139,0.640787,3107.4,3106.9,0.74243]
[1641682997335,0.640787,3107.4,3106.9,0.66197]
[1641682997535,0.640787,3107.4,3106.9,2.16197]
[1641682997737,2.00479,3107.7,3106.9,2.16197]
[1641682997938,2.00479,3107.7,3107.2,1.5]
[1641682998136,2.00479,3107.7,3107.3,0.66197]
[1641682999639,0.15938,3107.6,3106.8,0.08044]
[1641682999836,0.15938,3107.6,3106.7,2.00479]
[1641683000237,2.00479,3107.7,3107.0,1.5]
[1641683000439,2.00479,3107.7,3107.1,0.66197]
[1641683000839,0.15938,3107.6,3107.1,0.66197]
[1641683001038,2.00479,3107.7,3107.1,0.66197]
[1641683001438,2.645577,3107.7,3107.1,0.66197]
[1641683001642,2.00479,3107.7,3107.1,0.66197]
[1641683003042,0.15938,3107.6,3106.7,2.00479]
[1641683003441,1.06928,3107.6,3106.7,2.00479]
[1641683004043,1.06928,3107.6,3106.9,1.5]
[1641683004241,1.06928,3107.6,3107.0,0.66197]
[1641683004746,2.00479,3107.1,3107.0,0.66197]
[1641683005142,2.00479,3107.7,3107.0,14.43197]
[1641683005343,2.00479,3107.7,3107.1,0.08044]
[1641683005543,0.15938,3107.6,3107.2,0.66197]
[1641683005744,2.00479,3107.7,3107.1,1.5]
[1641683005944,1.60850061,3108.7,3107.2,13.77]
[1641683005945,1.6083609,3108.7,3107.2,13.77]
[1641683006245,33.39729138,3108.9,3107.3,0.08043]
[1641683006445,33.39729138,3108.9,3106.8,13.85043]
[1641683006846,2.00479,3108.1,3107.4,2.00479]
[1641683007045,0.800167,3108.0,3107.4,2.00479]
[1641683007846,0.800167,3108.0,3107.5,0.66197]
[1641683008045,0.800167,3108.0,3107.4,2.00479]
[1641683009546,0.800167,3108.0,3107.5,0.66197]
[1641683009752,0.640787,3108.0,3107.5,0.66197]
[1641683010149,0.640787,3108.0,3107.4,2.00479]
[1641683010351,0.15938,3107.9,3107.4,2.66676]
[1641683010548,0.15938,3107.9,3107.4,2.00479]
[1641683011048,0.15938,3107.9,3107.4,2.66676]
[1641683011251,0.15938,3107.9,3107.4,2.00479]
[1641683011452,0.640787,3108.0,3107.4,0.66197]
[1641683012451,0.800167,3108.0,3107.4,0.66197]
[1641683012852,0.800167,3108.0,3107.4,2.66676]
[1641683013254,0.800167,3108.0,3107.4,2.00479]
[1641683013653,1.60878008,3107.9,3107.5,0.66197]
[1641683013852,0.640787,3108.0,3107.5,0.66197]
[1641683014053,0.15938,3107.9,3107.5,0.66197]
[1641683014955,0.640787,3108.0,3107.5,0.66197]
[1641683015153,0.800167,3108.0,3107.5,0.66197]
[1641683015354,0.640787,3108.0,3107.5,0.66197]
[1641683018057,0.800167,3108.0,3107.5,0.66197]
[1641683018863,0.640787,3108.0,3107.5,0.66197]
[1641683019265,2.00479,3108.1,3107.5,0.66197]
[1641683019466,0.640787,3108.0,3107.5,0.66197]
[1641683019866,0.800167,3108.0,3107.5,0.66197]
[1641683022873,2.00479,3108.1,3107.5,0.66197]
[1641683023370,2.00479,3108.4,3107.5,14.43197]
[1641683023572,2.00479,3108.4,3108.1,1.5]
[1641683023771,2.00479,3108.4,3108.2,0.66197]
[1641683024071,2.00479,3108.4,3107.8,0.08042]
[1641683024272,2.00479,3108.4,3107.9,0.66197]
[1641683024771,4.304957,3108.4,3107.6,0.08042]
[1641683024973,4.304957,3108.4,3107.4,2.00479]
[1641683025173,4.4134576,3108.4,3107.4,2.00479]
[1641683025574,1.41064899,3108.3,3107.4,2.00479]
[1641683025973,1.41064899,3108.3,3107.4,15.77479]
[1641683026274,1.41064899,3108.3,3107.4,2.00479]
[1641683026473,1.5,3108.2,3107.4,2.00479]
[1641683026674,0.15938,3108.1,3107.4,2.00479]
[1641683026875,0.15938,3108.1,3107.5,0.66197]
[1641683028674,1.5,3107.9,3107.4,2.00479]
[1641683028876,4.00958,3107.5,3106.4,1.60864033]
[1641683029975,4.00958,3107.5,3106.4,1.68910033]
[1641683030775,0.88657777,3107.4,3106.4,1.68910033]
[1641683030977,2.00479,3107.0,3106.4,1.60864033]
[1641683031175,2.00479,3107.0,3106.5,0.66197]
[1641683031375,2.00479,3107.0,3106.6,13.77]
[1641683031576,2.00479,3107.0,3106.7,0.66197]
[1641683032976,0.640787,3106.9,3106.7,0.66197]
[1641683035278,2.00479,3107.0,3106.7,0.66197]
[1641683035477,2.645577,3107.0,3106.7,0.66197]
[1641683035678,2.804957,3107.0,3106.7,0.66197]
[1641683036078,2.00479,3107.0,3106.7,0.66197]
[1641683037278,2.00479,3107.0,3106.4,13.85046]
[1641683037579,0.800167,3106.9,3106.3,2.00479]
[1641683041385,1.459967,3106.9,3106.3,2.00479]
[1641683041585,1.459967,3106.9,3106.1,13.77]
[1641683043488,1.459967,3106.9,3106.2,0.66197]
[1641683044589,2.959967,3106.9,3106.0,2.00479]
[1641683044790,1.5,3106.4,3105.7,2.00479]
[1641683044989,1.459967,3106.9,3105.2,1.43077166]
[1641683044990,1.5,3105.8,3105.2,1.43077166]
[1641683045189,1.5,3105.6,3105.1,0.19031166]
[1641683045489,1.5,3105.2,3105.1,0.19031166]
[1641683045690,1.65938,3105.2,3105.1,0.19031166]
[1641683045891,1.65938,3105.2,3104.6,2.02512356]
[1641683045892,3.26961336,3105.2,3104.6,2.02512356]
[1641683046089,1.76961336,3105.2,3104.6,2.02512356]
[1641683046292,0.640787,3105.7,3104.6,2.68709356]
[1641683046489,1.97472451,3105.7,3104.6,2.68709356]
[1641683046689,1.97472451,3105.7,3104.7,1.5]
[1641683046890,1.97472451,3105.7,3104.4,13.77]
[1641683047090,1.97472451,3105.7,3105.0,2.00479]
[1641683047292,0.15938,3105.6,3105.0,2.00479]
[1641683047493,0.80666047,3106.8,3105.6,13.77]
[1641683048091,0.80666047,3106.8,3105.2,1.5]
[1641683048092,0.80666047,3106.8,3105.7,0.08047]
[1641683048291,0.80666047,3106.4,3105.3,0.08047]
[1641683048493,0.80666047,3106.4,3105.4,13.77]
[1641683048692,0.80666047,3106.4,3105.4,15.27]
[1641683049094,0.80666047,3106.4,3106.3,2.00479]
[1641683049294,1.60682747,3106.4,3106.3,2.00479]
[1641683049693,0.800167,3106.4,3106.3,2.00479]
[1641683052597,2.300167,3106.4,3106.0,2.00479]
[1641683053096,3.61466562,3106.1,3104.9,2.00479]
[1641683053299,0.96604757,3105.5,3104.6,2.00479]
[1641683053696,0.96604757,3105.5,3104.2,7.43912356]
[1641683053898,0.9661184,3105.3,3104.2,2.02512356]
[1641683054397,0.9661184,3105.3,3103.7,3.37855023]
[1641683054596,1.61022039,3105.1,3103.5,4.42777283]
[1641683054796,1.61022039,3105.1,3103.5,0.68533552]
[1641683055196,2.00479,3104.5,3103.8,2.00479]
[1641683055400,0.800167,3104.4,3103.9,0.66197]
[1641683055997,0.640787,3104.4,3103.9,2.16197]
[1641683056199,2.00479,3104.8,3103.9,2.16197]
[1641683056397,32.7619,3105.5,3104.0,13.77]
[1641683056596,0.80666047,3105.6,3104.8,15.27]
[1641683056796,0.80666047,3105.6,3105.0,13.77]
[1641683056997,0.80666047,3105.6,3104.9,0.74247]
[1641683056998,2.69110043,3106.8,3105.5,15.27]
[1641683057197,2.69110043,3106.8,3104.3,4.0]
[1641683057198,1.07710043,3106.8,3106.7,2.00479]
[1641683057398,1.07710043,3106.8,3106.7,4.27517264]
[1641683057598,2.0194698,3107.0,3106.7,16.43676]
[1641683057798,1.8998698,3107.0,3106.8,1.68887264]
[1641683057998,1.8998698,3107.0,3106.9,0.66197]
[1641683058800,0.15938,3107.1,3105.9,0.08046]
[1641683059000,0.640787,3107.2,3105.9,0.08046]
[1641683059198,2.00479,3106.7,3106.0,2.00479]
[1641683059397,2.00479,3106.7,3106.0,2.66676]
[1641683060399,0.15938,3106.6,3106.0,2.66676]
[1641683060599,0.640787,3106.5,3106.0,2.66676]
[1641683061103,0.800167,3106.5,3106.0,2.66676]
[1641683061307,3.10971236,3106.1,3105.1,0.08047]
[1641683061510,1.61016854,3105.2,3105.0,5.414]
[1641683061899,0.96593945,3105.8,3104.8,0.66197]
[1641683062299,1.5,3105.4,3104.5,1.36139647]
[1641683062499,1.5,3105.7,3104.5,1.36139647]
[1641683062702,0.96593945,3105.8,3104.5,1.36139647]
[1641683062904,0.96573313,3106.5,3104.8,1.5]
[1641683063102,2.00479,3105.8,3105.1,2.00479]
[1641683063302,2.00479,3105.8,3105.2,0.66197]
[1641683064603,2.00479,3105.8,3105.2,2.16197]
[1641683064805,2.00479,3106.7,3105.7,1.5]
[1641683065107,2.00479,3107.5,3106.6,2.00479]
[1641683065703,1.60908813,3107.3,3106.5,2.00479]
[1641683065903,0.800167,3107.2,3106.5,2.00479]
[1641683066506,0.98878574,3107.1,3106.5,2.00479]
[1641683066705,0.15938,3107.0,3106.5,2.00479]
[1641683067204,2.00479,3106.9,3106.5,2.00479]
[1641683068809,2.00479,3107.5,3106.7,1.5]
[1641683069011,1.60861963,3108.2,3107.0,13.77]
[1641683069208,0.65841098,3108.0,3107.3,13.77]
[1641683069407,0.65641098,3108.0,3107.4,13.85043]
[1641683069610,0.65641098,3108.0,3107.5,0.66197]
[1641683069808,0.65641098,3108.0,3107.6,0.08043]
[1641683070009,0.15938,3107.9,3107.5,0.66197]
[1641683070208,0.65641098,3108.0,3107.5,0.66197]
[1641683070409,2.0189862,3108.4,3107.5,0.66197]
[1641683070610,0.2457319,3108.4,3107.5,0.66197]
[1641683070810,0.2457319,3108.4,3107.6,13.77]
[1641683071010,0.15938,3108.3,3107.7,0.66197]
[1641683071210,0.2457319,3108.4,3108.1,2.00479]
[1641683071814,0.2457319,3108.4,3107.6,13.77]
[1641683072012,0.2457319,3108.4,3107.7,0.66197]
[1641683072412,0.15938,3108.3,3107.7,0.66197]
[1641683072614,11.49999999,3107.8,3105.2,1.63367576]
[1641683072812,1.5,3105.8,3105.2,1.63367576]
[1641683073013,1.5,3105.8,3103.4,4.0]
[1641683073312,2.00479,3104.2,3103.6,13.77]
[1641683073511,2.00479,3104.2,3103.2,0.08051]
[1641683073713,1.5,3103.8,3102.2,0.08053]
[1641683073915,1.55805103,3104.1,3102.2,0.08053]
[1641683074114,1.61105571,3103.4,3102.0,1.5]
[1641683074312,0.66197,3103.3,3103.0,13.77]
[1641683074613,0.640787,3103.2,3103.0,13.77]
[1641683074812,0.66197,3103.1,3103.0,13.77]
[1641683075012,0.672,3103.8,3103.0,13.77]
[1641683075013,1.5,3104.8,3103.0,13.77]
[1641683075217,2.00479,3103.7,3103.0,15.77479]
[1641683075412,2.00479,3103.7,3103.1,0.08054]
[1641683075613,2.00479,3103.7,3103.3,13.77]
[1641683076014,1.24532806,3105.4,3103.6,13.77]
[1641683076213,1.5,3105.3,3103.6,13.85053]
[1641683076414,1.61011669,3105.2,3103.6,13.85053]
[1641683076616,1.61011669,3105.2,3103.8,13.77]
[1641683076815,1.61011669,3105.2,3103.8,13.85053]
[1641683077115,1.5,3105.6,3103.9,0.50259]
[1641683077316,2.00479,3104.8,3104.0,13.77]
[1641683077517,35.9239,3106.3,3104.0,15.27]
[1641683077816,0.80293053,3105.8,3105.3,1.5]
[1641683078015,0.80293053,3105.8,3105.4,14.27259]
[1641683078215,0.80293053,3105.8,3105.5,0.08049]
[1641683078418,0.80293053,3105.8,3105.6,0.50259]
[1641683078615,32.4229,3107.3,3105.7,13.77]
[1641683078616,1.60902599,3107.3,3105.7,13.77]
[1641683078815,3.68009825,3107.4,3105.8,0.08046]
[1641683079217,2.00479,3106.9,3106.1,2.00479]
[1641683079418,2.00479,3106.9,3106.2,14.35305]
[1641683079816,2.00479,3107.2,3106.2,14.35305]
[1641683080016,2.00479,3107.2,3106.7,1.5]
[1641683080218,3.34834278,3108.2,3107.1,13.77]
[1641683080919,2.01114937,3107.8,3107.1,13.77]
[1641683081119,1.302757,3107.7,3107.3,10.84615565]
[1641683081320,1.302757,3107.7,3107.5,10.84615565]
[1641683082121,3.10893538,3107.6,3107.5,10.84615565]
[1641683082320,3.10893538,3107.6,3106.9,0.08043]
[1641683082321,3.10893538,3107.6,3106.0,13.85043]
[1641683082521,1.5,3107.4,3106.0,13.85043]
[1641683082921,1.60902858,3107.3,3106.0,13.85043]
[1641683083120,1.5,3107.4,3106.0,13.85043]
[1641683083320,0.640787,3107.7,3106.0,13.85043]
[1641683083521,2.140787,3107.7,3106.0,13.85043]
[1641683083720,0.51387163,3107.3,3106.3,13.77]
[1641683083920,0.51387163,3107.3,3106.7,13.77]
[1641683084120,1.17584163,3107.3,3106.7,13.77]
[1641683085021,0.66197,3107.3,3106.7,14.91269]
[1641683085224,2.00479,3107.4,3107.0,13.77]
[1641683085423,0.51387163,3107.6,3107.2,13.77]
[1641683085723,1.17584163,3107.6,3107.2,13.77]
[1641683086122,0.66197,3107.6,3107.2,13.77]
[1641683086525,2.00479,3107.7,3107.4,13.77]
[1641683086728,2.66676,3107.7,3107.4,13.77]
[1641683086926,2.00479,3107.7,3107.4,13.77]
[1641683087125,0.66197,3107.6,3107.4,13.77]
[1641683088526,2.00479,3107.7,3107.4,13.77]
[1641683088927,0.51386989,3107.5,3107.4,13.77]
[1641683089327,0.51386989,3107.5,3107.4,12.08007848]
[1641683089529,0.51386989,3107.5,3107.4,11.57748848]
[1641683089927,1.17583989,3107.5,3106.8,13.85044]
[1641683090129,2.27089503,3107.5,3106.8,13.77]
[1641683090328,2.27089503,3107.5,3105.8,1.60892503]
[1641683090329,3.10937817,3106.9,3105.1,0.96612291]
[1641683090528,1.5,3105.9,3105.2,4.447]
[1641683090729,0.9660207,3105.6,3105.2,5.414]
[1641683090928,1.5,3106.7,3104.2,0.96640255]
[1641683091128,1.5,3105.5,3104.3,13.8505]
[1641683091331,2.00479,3104.6,3104.3,13.77]
[1641683091632,2.00479,3104.6,3104.5,13.77]
[1641683092032,2.00479,3104.6,3104.5,14.27259]
[1641683095935,2.00479,3104.9,3104.5,14.27259]
[1641683096739,1.60977973,3105.9,3104.8,13.77]
[1641683096935,2.01114937,3106.2,3105.1,13.77]
[1641683097338,2.00479,3105.6,3105.1,13.77]
[1641683097535,2.01114937,3106.3,3105.3,13.77]
[1641683098335,2.01114937,3106.3,3105.6,13.77]
[1641683098536,2.01114937,3106.3,3105.8,13.77]
[1641683099035,2.01114937,3106.3,3105.7,1.5]
[1641683099036,0.51410254,3106.2,3106.0,13.77]
[1641683099635,0.51410254,3106.2,3106.0,14.27259]
[1641683100938,0.80409424,3106.2,3106.1,15.27]
[1641683101138,0.80409424,3106.2,3106.1,13.77]
[1641683101337,0.80409424,3106.2,3106.1,15.77479]
[1641683102138,0.51410254,3106.3,3106.1,15.77479]
[1641683102341,2.01114937,3107.1,3106.3,13.77]
[1641683102541,2.01114937,3107.1,3107.0,15.27]
[1641683102740,2.01114937,3107.1,3107.0,13.77]
[1641683102942,2.68153249,3107.4,3107.0,11.34838406]
[1641683102943,2.01114937,3107.4,3107.0,11.34838406]
[1641683103340,2.01114937,3107.4,3107.3,12.85058406]
[1641683103740,2.01114937,3107.4,3107.3,13.45198406]
[1641683104644,2.01114937,3107.4,3107.3,2.60619]
[1641683104846,2.01114937,3107.4,3107.0,2.00479]
[1641683104847,0.66197,3107.5,3107.0,2.00479]
[1641683105044,1.302757,3107.4,3105.7,0.08044]
[1641683105244,2.00479,3107.0,3106.2,2.00479]
[1641683105444,0.66197,3106.9,3105.9,2.00479]
[1641683105646,0.66197,3106.9,3105.2,0.08046]
[1641683105845,0.66197,3106.9,3105.8,13.77]
[1641683106045,2.19298198,3105.9,3105.8,13.77]
[1641683106344,2.00479,3107.0,3105.8,15.77259]
[1641683106545,2.00479,3107.0,3106.1,13.77]
[1641683107448,2.00479,3106.2,3106.1,13.77]
[1641683107646,2.00479,3106.2,3106.1,14.27259]
[1641683108949,2.00479,3107.0,3106.1,14.27259]
[1641683109150,2.00479,3107.0,3106.3,13.77]
[1641683109348,2.00479,3107.0,3106.5,13.77]
[1641683109548,2.00479,3107.0,3106.8,1.5]
[1641683109751,2.00479,3107.0,3106.9,13.77]
[1641683109950,2.00479,3107.0,3106.9,15.18629]
[1641683112954,2.00479,3107.0,3106.9,14.6837]
[1641683115058,2.00479,3107.0,3106.9,0.9137]
[1641683115257,2.00479,3107.0,3106.3,13.77]
[1641683115457,0.66197,3106.9,3106.3,13.77]
[1641683116459,0.66197,3106.9,3106.3,14.27259]
[1641683116859,1.302757,3106.9,3106.3,14.27259]
[1641683117261,2.00479,3106.4,3106.3,13.77]
[1641683117460,2.66676,3106.4,3106.3,13.77]
[1641683118362,2.00479,3106.4,3106.3,13.77]
[1641683120166,2.00479,3106.4,3106.2,13.77]
[1641683120565,2.00479,3106.4,3106.3,14.27259]
[1641683121165,2.00479,3106.4,3106.3,13.77]
[1641683121975,2.00479,3106.4,3105.9,1.5]
[1641683121976,2.66676,3106.4,3105.7,0.08047]
[1641683122164,2.19296148,3106.0,3105.7,0.08047]
[1641683122365,1.302757,3105.9,3105.7,0.08047]
[1641683122767,1.302757,3105.9,3104.3,0.08049]
[1641683122972,1.5,3105.5,3104.3,0.08049]
[1641683123175,2.54752641,3105.8,3104.2,13.77]
[1641683123367,2.00479,3104.7,3104.2,13.77]
[1641683123568,2.00479,3104.7,3104.2,14.27259]
[1641683125570,2.66676,3104.7,3103.9,0.08051]
[1641683125770,4.16676,3104.7,3103.6,0.08053]
[1641683125969,1.5,3104.5,3103.5,2.00479]
[1641683126368,2.00479,3104.7,3103.5,2.00479]
[1641683126571,2.00479,3104.7,3103.6,13.77]
[1641683126978,1.61043303,3104.6,3103.6,13.77]
[1641683127372,2.00479,3104.1,3103.6,13.77]
[1641683127572,2.00479,3104.1,3103.6,14.27259]
[1641683129273,0.640787,3104.0,3103.6,14.27259]
[1641683129480,2.00479,3104.7,3103.9,1.5]
[1641683129674,0.80435917,3105.2,3104.7,13.77]
[1641683129874,0.66197,3105.2,3104.7,13.77]
[1641683130276,0.66197,3105.2,3104.7,14.27259]
[1641683131380,2.00479,3105.0,3104.7,14.27259]
[1641683133986,0.66197,3104.9,3104.3,0.0805]
[1641683134185,1.5,3104.5,3103.5,0.0805]
[1641683134385,1.5,3104.5,3103.4,1.61016594]
[1641683134989,1.5,3104.5,3103.5,13.77]
[1641683135388,2.00479,3103.7,3103.0,2.08532]
[1641683135588,2.66676,3103.7,3103.0,2.58791]
[1641683135890,0.640787,3103.6,3103.0,2.50738]
[1641683136088,0.66197,3103.5,3103.1,13.77]
[1641683137089,2.00479,3103.7,3103.3,13.77]
[1641683137690,2.00479,3103.7,3103.3,14.27259]
[1641683139692,2.00479,3103.7,3103.4,0.08054]
[1641683139994,2.00479,3103.7,3103.5,13.77]
[1641683141794,2.00479,3103.7,3103.6,14.27259]
[1641683141994,2.00479,3103.7,3103.6,13.77]
[1641683142194,2.00479,3104.0,3103.6,15.27]
[1641683142395,0.80435917,3104.6,3103.9,15.27]
[1641683142596,0.80435917,3104.6,3104.0,0.08053]
[1641683142796,0.80435917,3104.6,3104.1,0.50259]
[1641683142996,0.80435917,3104.6,3104.2,13.77]
[1641683143196,0.80435917,3104.7,3104.2,13.85053]
[1641683143396,1.44514617,3104.7,3104.2,14.27259]
[1641683143599,2.10711617,3104.7,3104.2,0.08051]
[1641683143796,1.5,3104.6,3103.7,2.00479]
[1641683144597,0.640787,3104.7,3103.8,13.77]
[1641683145399,2.00479,3104.1,3103.7,2.00479]
[1641683145600,0.66197,3104.0,3103.7,2.00479]
[1641683145799,1.302757,3104.0,3103.7,2.00479]
[1641683146202,1.302757,3104.0,3103.8,13.77]
[1641683146403,0.66197,3104.0,3103.7,2.00479]
[1641683146601,2.00479,3104.1,3103.2,1.5]
[1641683146802,2.00479,3104.1,3103.3,13.77]
[1641683147203,2.00479,3104.1,3103.5,13.77]
[1641683147401,4.00958,3104.1,3103.5,13.77]
[1641683147802,4.00958,3104.1,3103.6,14.27259]
[1641683149703,4.650367,3104.1,3103.6,14.27259]
[1641683150104,4.00958,3104.1,3103.6,14.27259]
[1641683152406,2.00479,3104.1,3104.0,13.77]
[1641683152609,0.80435917,3104.7,3104.0,14.35312]
[1641683152811,0.80435917,3104.7,3104.3,2.20788776]
[1641683153007,0.80435917,3104.7,3104.4,14.27259]
[1641683153908,2.00479,3104.8,3104.4,14.27259]
[1641683154306,2.00479,3104.8,3104.2,0.08051]
[1641683154506,2.00479,3104.8,3104.1,2.00479]
[1641683154906,0.66197,3104.7,3104.1,2.00479]
[1641683155106,0.66197,3104.7,3103.9,0.08051]
[1641683155306,0.640787,3104.6,3103.4,13.85053]
[1641683155506,2.00479,3103.9,3103.4,13.85053]
[1641683155707,2.00479,3103.9,3103.6,13.77]
[1641683155906,2.00479,3103.9,3103.7,0.08053]
[1641683156307,2.00479,3103.9,3103.8,14.27259]
[1641683161410,2.00479,3103.9,3103.2,2.00479]
[1641683161411,2.645577,3103.9,3103.4,13.85053]
[1641683161612,4.145577,3103.9,3103.4,13.77]
[1641683161912,0.66197,3103.8,3103.4,13.77]
[1641683162311,0.66197,3103.8,3103.2,2.00479]
[1641683162509,0.66197,3103.8,3103.2,15.77479]
[1641683162711,0.66197,3103.8,3103.2,2.00479]
[1641683163312,0.66197,3103.8,3103.3,13.77]
[1641683164013,0.66197,3103.8,3103.3,14.27259]
[1641683164417,2.00479,3103.9,3103.3,14.27259]
[1641683164612,2.00479,3104.0,3103.8,13.77]
[1641683164812,2.00479,3104.0,3103.9,0.08053]
[1641683165014,0.80435917,3104.4,3104.1,13.77]
[1641683165413,0.80435917,3104.4,3104.3,13.77]
[1641683165812,2.00479,3104.6,3104.3,13.77]
[1641683166213,2.00479,3104.6,3104.4,14.27259]
[1641683170117,2.80914917,3104.9,3104.4,16.79547759]
[1641683170316,0.68571393,3105.6,3104.7,1.5]
[1641683170616,1.07322247,3105.8,3105.0,13.77]
[1641683170815,1.07322247,3105.7,3105.2,13.77]
[1641683171017,1.07322247,3105.7,3105.3,0.0805]
[1641683171216,1.07322247,3105.7,3105.4,0.50259]
[1641683171414,1.07322247,3105.7,3105.5,13.77]
[1641683171615,3.07801247,3105.7,3105.5,13.77]
[1641683172014,2.00479,3105.7,3105.5,13.77]
[1641683172416,2.00479,3105.7,3105.0,3.58528]
[1641683172417,2.00479,3105.7,3105.6,14.27259]
[1641683172614,2.00479,3105.7,3105.6,13.77]
[1641683172814,2.00479,3105.7,3105.6,14.27259]
[1641683174816,2.00479,3105.7,3105.6,13.77]
[1641683178319,2.00479,3105.7,3105.3,0.50259]
[1641683178720,2.26774094,3105.7,3105.3,0.50259]
[1641683179121,2.26774094,3105.7,3105.4,0.0805]
[1641683179321,2.26774094,3105.7,3105.6,14.73598196]
[1641683179522,2.00479,3106.0,3105.6,14.81647196]
[1641683179720,2.00479,3106.0,3105.7,0.08049]
[1641683179923,2.00479,3106.0,3105.8,13.77]
[1641683180124,2.00479,3106.0,3105.9,0.08049]
[1641683180321,1.03892792,3106.0,3105.9,0.08049]
[1641683180521,2.00479,3106.4,3105.9,0.08049]